[Event "Titled Tuesday Blitz April 4 Late 2023"]
[White "Rizzo, Tobias"]
[Black "Dylag, Emilia"]
[WhiteFideId "30942691"]
[BlackFideId "21805172"]
[WhiteElo "2457"]
[BlackElo "1878"]
[Result "1-0"]
[Round "02"]
[TimeControl "180+2"]
[Date "2023.04.04"]
[WhiteClock "0:00:03"]
[BlackClock "0:00:01"]

1. d4 {[%clk 0:03:00]}  Nf6 {[%clk 0:01:28]} 2. Bg5 {[%clk 0:03:00]}  e6 {[%clk 0:01:27]} 3. e4 {[%clk 0:02:59]}  h6 {[%clk 0:01:26]} 4. Bxf6 {[%clk 0:02:59]}  Qxf6 {[%clk 0:01:25]} 5. c3 {[%clk 0:03:00]}  d5 {[%clk 0:01:23]} 6. Nd2 {[%clk 0:02:55]}  c5 {[%clk 0:01:21]} 7. dxc5 {[%clk 0:02:45]}  Bxc5 {[%clk 0:01:19]} 8. Ngf3 {[%clk 0:02:44]}  O-O {[%clk 0:01:18]} 9. Bd3 {[%clk 0:02:40]}  Nc6 {[%clk 0:01:16]} 10. O-O {[%clk 0:02:40]}  Rd8 {[%clk 0:01:15]} 11. Qc2 {[%clk 0:02:39]}  d4 {[%clk 0:01:11]} 12. Nb3 {[%clk 0:02:30]}  Bb6 {[%clk 0:01:07]} 13. cxd4 {[%clk 0:02:16]}  Nxd4 {[%clk 0:01:05]} 14. Nbxd4 {[%clk 0:02:13]}  Bxd4 {[%clk 0:01:03]} 15. Rfd1 {[%clk 0:02:07]}  Be5 {[%clk 0:00:48]} 16. Qc5 {[%clk 0:01:30]}  Bd4 {[%clk 0:00:41]} 17. e5 {[%clk 0:01:02]}  Bxc5 {[%clk 0:00:38]} 18. exf6 {[%clk 0:01:02]}  Bd7 {[%clk 0:00:36]} 19. fxg7 {[%clk 0:01:01]}  Kxg7 {[%clk 0:00:33]} 20. Rac1 {[%clk 0:01:01]}  Bb6 {[%clk 0:00:29]} 21. Be4 {[%clk 0:00:59]}  Rab8 {[%clk 0:00:25]} 22. Ne5 {[%clk 0:00:55]}  Bb5 {[%clk 0:00:18]} 23. g3 {[%clk 0:00:27]}  Bd4 {[%clk 0:00:15]} 24. Nf3 {[%clk 0:00:23]}  Bxb2 {[%clk 0:00:14]} 25. Rxd8 {[%clk 0:00:20]}  Rxd8 {[%clk 0:00:14]} 26. Rb1 {[%clk 0:00:21]}  Bd3 {[%clk 0:00:13]} 27. Bxd3 {[%clk 0:00:14]}  Rxd3 {[%clk 0:00:14]} 28. Rxb2 {[%clk 0:00:15]}  Rxf3 {[%clk 0:00:14]} 29. Rxb7 {[%clk 0:00:16]}  Ra3 {[%clk 0:00:14]} 30. Rb2 {[%clk 0:00:15]}  Kf6 {[%clk 0:00:15]} 31. Kf1 {[%clk 0:00:14]}  Kf5 {[%clk 0:00:15]} 32. Ke2 {[%clk 0:00:14]}  Kg4 {[%clk 0:00:11]} 33. h4 {[%clk 0:00:13]}  h5 {[%clk 0:00:11]} 34. Kd2 {[%clk 0:00:09]}  Kf3 {[%clk 0:00:11]} 35. Kc1 {[%clk 0:00:08]}  e5 {[%clk 0:00:11]} 36. Kb1 {[%clk 0:00:08]}  f5 {[%clk 0:00:10]} 37. Kc1 {[%clk 0:00:06]}  e4 {[%clk 0:00:10]} 38. Kd1 {[%clk 0:00:05]}  e3 {[%clk 0:00:10]} 39. fxe3 {[%clk 0:00:06]}  Kxe3 {[%clk 0:00:10]} 40. Rb5 {[%clk 0:00:03]}  Rxa2 {[%clk 0:00:06]} 41. Rxf5 {[%clk 0:00:03]}  Rd2+ {[%clk 0:00:07]} 42. Kc1 {[%clk 0:00:03]}  Rg2 {[%clk 0:00:05]} 43. Rxh5 {[%clk 0:00:03]}  Rxg3 {[%clk 0:00:05]} 44. Ra5 {[%clk 0:00:03]}  Rg4 {[%clk 0:00:04]} 45. h5 {[%clk 0:00:03]}  Rh4 {[%clk 0:00:04]} 46. Kc2 {[%clk 0:00:03]}  Kf4 {[%clk 0:00:03]} 47. Kd3 {[%clk 0:00:04]}  Kg3 {[%clk 0:00:01]} 48. Rxa7 {[%clk 0:00:04]}  Kh3 {[%clk 0:00:01]} 49. Ra5 {[%clk 0:00:03]} 1-0


[Site "https://www.chess.com"]

[Event "Titled Tuesday Blitz April 4 Late 2023"]
[White "Svicevic, Rastko"]
[Black "Golubev, Mikhail"]
[WhiteFideId "916315"]
[BlackFideId "14100983"]
[WhiteElo "2071"]
[BlackElo "2374"]
[Result "0-1"]
[Round "02"]
[TimeControl "180+2"]
[Date "2023.04.04"]
[WhiteClock "0:00:15"]
[BlackClock "0:00:19"]

1. d4 {[%clk 0:03:00]}  Nf6 {[%clk 0:02:59]} 2. Bg5 {[%clk 0:03:01]}  Ne4 {[%clk 0:02:54]} 3. Bf4 {[%clk 0:03:01]}  c5 {[%clk 0:02:55]} 4. d5 {[%clk 0:03:00]}  d6 {[%clk 0:02:45]} 5. f3 {[%clk 0:02:58]}  Nf6 {[%clk 0:02:45]} 6. e4 {[%clk 0:02:57]}  e6 {[%clk 0:02:41]} 7. Nc3 {[%clk 0:02:57]}  exd5 {[%clk 0:02:41]} 8. exd5 {[%clk 0:02:57]}  Be7 {[%clk 0:02:39]} 9. Bc4 {[%clk 0:02:51]}  O-O {[%clk 0:02:39]} 10. Nge2 {[%clk 0:02:50]}  a6 {[%clk 0:02:30]} 11. a4 {[%clk 0:02:50]}  Nh5 {[%clk 0:02:19]} 12. Bg3 {[%clk 0:02:46]}  Nd7 {[%clk 0:02:16]} 13. a5 {[%clk 0:02:44]}  Nxg3 {[%clk 0:02:10]} 14. hxg3 {[%clk 0:02:41]}  Ne5 {[%clk 0:02:11]} 15. b3 {[%clk 0:02:35]}  Bf6 {[%clk 0:02:01]} 16. O-O {[%clk 0:02:31]}  Re8 {[%clk 0:01:51]} 17. Qd2 {[%clk 0:02:30]}  Nxc4 {[%clk 0:01:33]} 18. bxc4 {[%clk 0:02:29]}  g6 {[%clk 0:01:10]} 19. Ra3 {[%clk 0:02:13]}  Bg7 {[%clk 0:01:05]} 20. Rb1 {[%clk 0:02:13]}  h5 {[%clk 0:00:59]} 21. Ne4 {[%clk 0:01:59]}  Bf5 {[%clk 0:00:59]} 22. Rxb7 {[%clk 0:01:38]}  Bxe4 {[%clk 0:00:43]} 23. fxe4 {[%clk 0:01:36]}  Qc8 {[%clk 0:00:43]} 24. Rb6 {[%clk 0:01:15]}  Rxe4 {[%clk 0:00:42]} 25. Rxd6 {[%clk 0:01:06]}  Qg4 {[%clk 0:00:41]} 26. Rf3 {[%clk 0:00:58]}  Rae8 {[%clk 0:00:36]} 27. Nf4 {[%clk 0:00:51]}  Re1+ {[%clk 0:00:27]} 28. Kh2 {[%clk 0:00:51]}  Bd4 {[%clk 0:00:26]} 29. Nh3 {[%clk 0:00:37]}  R8e2 {[%clk 0:00:20]} 30. Qh6 {[%clk 0:00:20]}  Qxh3+ {[%clk 0:00:18]} 31. Kxh3 {[%clk 0:00:15]}  Rh1# {[%clk 0:00:19]} 0-1


[Site "https://www.chess.com"]

[Event "Titled Tuesday Blitz April 4 Late 2023"]
[White "Baruch, Liam"]
[Black "Goltseva, Ekaterina"]
[WhiteFideId "14322064"]
[BlackFideId "24173770"]
[WhiteElo "2150"]
[BlackElo "2200"]
[Result "0-1"]
[Round "02"]
[TimeControl "180+2"]
[Date "2023.04.04"]
[WhiteClock "0:00:04"]
[BlackClock "0:00:23"]

1. e4 {[%clk 0:03:00]}  c5 {[%clk 0:02:54]} 2. Nc3 {[%clk 0:03:00]}  e6 {[%clk 0:02:39]} 3. f4 {[%clk 0:03:00]}  Nc6 {[%clk 0:02:36]} 4. Nf3 {[%clk 0:03:00]}  d5 {[%clk 0:02:23]} 5. Bb5 {[%clk 0:02:56]}  d4 {[%clk 0:02:21]} 6. Ne2 {[%clk 0:02:51]}  Nf6 {[%clk 0:02:16]} 7. d3 {[%clk 0:02:49]}  Qa5+ {[%clk 0:02:13]} 8. c3 {[%clk 0:02:28]}  Qxb5 {[%clk 0:02:09]} 9. e5 {[%clk 0:02:28]}  Nd7 {[%clk 0:02:01]} 10. cxd4 {[%clk 0:02:26]}  cxd4 {[%clk 0:01:58]} 11. O-O {[%clk 0:02:24]}  Bc5 {[%clk 0:01:57]} 12. Ng3 {[%clk 0:02:18]}  Ne7 {[%clk 0:01:48]} 13. Ne4 {[%clk 0:02:11]}  Nf5 {[%clk 0:01:34]} 14. a3 {[%clk 0:02:00]}  a5 {[%clk 0:01:32]} 15. g4 {[%clk 0:01:51]}  Ne3 {[%clk 0:01:24]} 16. Bxe3 {[%clk 0:01:50]}  dxe3 {[%clk 0:01:25]} 17. Kh1 {[%clk 0:01:27]}  b6 {[%clk 0:01:09]} 18. Qc2 {[%clk 0:00:56]}  Bb7 {[%clk 0:01:00]} 19. h3 {[%clk 0:00:42]}  O-O {[%clk 0:00:52]} 20. Kh2 {[%clk 0:00:40]}  Rac8 {[%clk 0:00:50]} 21. Rfe1 {[%clk 0:00:24]}  f5 {[%clk 0:00:43]} 22. gxf5 {[%clk 0:00:15]}  exf5 {[%clk 0:00:43]} 23. Neg5 {[%clk 0:00:14]}  h6 {[%clk 0:00:41]} 24. e6 {[%clk 0:00:12]}  Nf6 {[%clk 0:00:36]} 25. a4 {[%clk 0:00:08]}  Qe8 {[%clk 0:00:32]} 26. Qb3 {[%clk 0:00:07]}  Qe7 {[%clk 0:00:28]} 27. Ne5 {[%clk 0:00:05]}  Bd5 {[%clk 0:00:24]} 28. Ng6 {[%clk 0:00:04]}  Bxb3 {[%clk 0:00:23]} 29. Nxe7+ {[%clk 0:00:05]}  Bxe7 {[%clk 0:00:24]} 30. Nf3 {[%clk 0:00:05]}  Rc2+ {[%clk 0:00:22]} 31. Kg3 {[%clk 0:00:04]}  Nh5# {[%clk 0:00:23]} 0-1


[Site "https://www.chess.com"]

[Event "Titled Tuesday Blitz April 4 Late 2023"]
[White "Manu_ChessExcelsior"]
[Black "mohsengabr2002"]
[WhiteElo "2131"]
[BlackElo "2446"]
[Result "0-1"]
[Round "02"]
[TimeControl "180+2"]
[Date "2023.04.04"]
[WhiteClock "0:00:03"]
[BlackClock "0:01:31"]

1. e4 {[%clk 0:03:00]}  d6 {[%clk 0:02:57]} 2. d4 {[%clk 0:03:00]}  Nf6 {[%clk 0:02:57]} 3. Nc3 {[%clk 0:03:01]}  c6 {[%clk 0:02:57]} 4. Be3 {[%clk 0:02:58]}  b5 {[%clk 0:02:57]} 5. Bd3 {[%clk 0:02:45]}  g6 {[%clk 0:02:54]} 6. h3 {[%clk 0:02:34]}  Bg7 {[%clk 0:02:54]} 7. Qd2 {[%clk 0:02:30]}  Nbd7 {[%clk 0:02:46]} 8. Nf3 {[%clk 0:02:26]}  Nb6 {[%clk 0:02:46]} 9. O-O-O {[%clk 0:02:08]}  Nc4 {[%clk 0:02:41]} 10. Bxc4 {[%clk 0:02:01]}  bxc4 {[%clk 0:02:42]} 11. Bh6 {[%clk 0:01:58]}  Bxh6 {[%clk 0:02:40]} 12. Qxh6 {[%clk 0:01:59]}  Rb8 {[%clk 0:02:41]} 13. e5 {[%clk 0:01:42]}  Nd5 {[%clk 0:02:38]} 14. Qg7 {[%clk 0:01:29]}  Rf8 {[%clk 0:02:37]} 15. exd6 {[%clk 0:01:23]}  Qxd6 {[%clk 0:02:37]} 16. Nxd5 {[%clk 0:01:10]}  cxd5 {[%clk 0:02:36]} 17. Qe5 {[%clk 0:01:07]}  Qb6 {[%clk 0:02:30]} 18. b3 {[%clk 0:00:54]}  cxb3 {[%clk 0:02:28]} 19. axb3 {[%clk 0:00:53]}  Be6 {[%clk 0:02:25]} 20. Rhe1 {[%clk 0:00:48]}  Rc8 {[%clk 0:02:25]} 21. Re3 {[%clk 0:00:45]}  Qc7 {[%clk 0:02:05]} 22. Qxc7 {[%clk 0:00:36]}  Rxc7 {[%clk 0:02:05]} 23. Rde1 {[%clk 0:00:37]}  Bf5 {[%clk 0:02:03]} 24. c3 {[%clk 0:00:31]}  f6 {[%clk 0:02:03]} 25. Kb2 {[%clk 0:00:26]}  Kf7 {[%clk 0:02:01]} 26. g4 {[%clk 0:00:22]}  Bc8 {[%clk 0:01:55]} 27. g5 {[%clk 0:00:19]}  Bxh3 {[%clk 0:01:52]} 28. Rh1 {[%clk 0:00:19]}  Bg4 {[%clk 0:01:50]} 29. Rxh7+ {[%clk 0:00:18]}  Kg8 {[%clk 0:01:50]} 30. Rh6 {[%clk 0:00:14]}  Bxf3 {[%clk 0:01:45]} 31. Rxf3 {[%clk 0:00:14]}  Kg7 {[%clk 0:01:40]} 32. Rfh3 {[%clk 0:00:08]}  fxg5 {[%clk 0:01:38]} 33. Rh7+ {[%clk 0:00:08]}  Kg8 {[%clk 0:01:35]} 34. Rh8+ {[%clk 0:00:08]}  Kf7 {[%clk 0:01:32]} 35. R3h7+ {[%clk 0:00:03]}  Ke8 {[%clk 0:01:31]} 0-1


[Site "https://www.chess.com"]

[Event "Titled Tuesday Blitz April 4 Late 2023"]
[White "Winkels, Marcel"]
[Black "Mordechai, Hanan"]
[WhiteFideId "1003887"]
[BlackFideId "2804166"]
[WhiteElo "1900"]
[BlackElo "2324"]
[Result "0-1"]
[Round "02"]
[TimeControl "180+2"]
[Date "2023.04.04"]
[WhiteClock "0:00:02"]
[BlackClock "0:00:58"]

1. d4 {[%clk 0:03:00]}  Nf6 {[%clk 0:02:58]} 2. Nc3 {[%clk 0:03:01]}  e6 {[%clk 0:02:59]} 3. Bf4 {[%clk 0:02:59]}  d5 {[%clk 0:02:59]} 4. Nb5 {[%clk 0:02:56]}  Na6 {[%clk 0:02:58]} 5. e3 {[%clk 0:02:55]}  Be7 {[%clk 0:02:56]} 6. Nf3 {[%clk 0:02:56]}  O-O {[%clk 0:02:56]} 7. Ne5 {[%clk 0:02:56]}  c6 {[%clk 0:02:56]} 8. Nc3 {[%clk 0:02:55]}  Nc7 {[%clk 0:02:49]} 9. Qf3 {[%clk 0:02:52]}  a6 {[%clk 0:02:44]} 10. g4 {[%clk 0:02:50]}  Nb5 {[%clk 0:02:43]} 11. Nxb5 {[%clk 0:02:38]}  axb5 {[%clk 0:02:43]} 12. Bd3 {[%clk 0:02:32]}  Qa5+ {[%clk 0:02:40]} 13. c3 {[%clk 0:02:31]}  b4 {[%clk 0:02:37]} 14. Kd2 {[%clk 0:02:06]}  bxc3+ {[%clk 0:02:35]} 15. bxc3 {[%clk 0:02:04]}  c5 {[%clk 0:02:31]} 16. g5 {[%clk 0:02:01]}  Ne4+ {[%clk 0:02:31]} 17. Bxe4 {[%clk 0:01:56]}  dxe4 {[%clk 0:02:31]} 18. Qxe4 {[%clk 0:01:56]}  cxd4 {[%clk 0:02:32]} 19. exd4 {[%clk 0:01:54]}  Rd8 {[%clk 0:02:04]} 20. Rhc1 {[%clk 0:01:41]}  Bd7 {[%clk 0:02:03]} 21. Nxd7 {[%clk 0:01:25]}  Rxd7 {[%clk 0:02:03]} 22. h4 {[%clk 0:01:19]}  Rad8 {[%clk 0:01:52]} 23. Be3 {[%clk 0:01:16]}  e5 {[%clk 0:01:48]} 24. Ke2 {[%clk 0:01:10]}  exd4 {[%clk 0:01:44]} 25. Bxd4 {[%clk 0:01:09]}  Bf8 {[%clk 0:01:45]} 26. Kf1 {[%clk 0:01:07]}  Re7 {[%clk 0:01:40]} 27. Qf3 {[%clk 0:01:06]}  b5 {[%clk 0:01:31]} 28. h5 {[%clk 0:00:53]}  b4 {[%clk 0:01:30]} 29. h6 {[%clk 0:00:45]}  Qxg5 {[%clk 0:01:23]} 30. hxg7 {[%clk 0:00:40]}  Bxg7 {[%clk 0:01:23]} 31. Bxg7 {[%clk 0:00:30]}  Kxg7 {[%clk 0:01:24]} 32. cxb4 {[%clk 0:00:30]}  Qb5+ {[%clk 0:01:17]} 33. Kg1 {[%clk 0:00:23]}  Rd6 {[%clk 0:01:17]} 34. Rc5 {[%clk 0:00:18]}  Rg6+ {[%clk 0:01:16]} 35. Kh2 {[%clk 0:00:12]}  Qxb4 {[%clk 0:01:11]} 36. Rf5 {[%clk 0:00:09]}  Qh4+ {[%clk 0:01:03]} 37. Qh3 {[%clk 0:00:05]}  Re4 {[%clk 0:01:03]} 38. Rf3 {[%clk 0:00:02]}  Qe7 {[%clk 0:00:58]} 0-1


[Site "https://www.chess.com"]

[Event "Titled Tuesday Blitz April 4 Late 2023"]
[White "Bouget, Alexandre"]
[Black "Levine, David"]
[WhiteFideId "681318"]
[BlackFideId "2011611"]
[WhiteElo "2182"]
[BlackElo "2089"]
[Result "1-0"]
[Round "02"]
[TimeControl "180+2"]
[Date "2023.04.04"]
[WhiteClock "0:01:21"]
[BlackClock "0:00:18"]

1. Nc3 {[%clk 0:02:55]}  d5 {[%clk 0:02:58]} 2. e4 {[%clk 0:02:55]}  d4 {[%clk 0:02:55]} 3. Nce2 {[%clk 0:02:55]}  c5 {[%clk 0:02:53]} 4. d3 {[%clk 0:02:55]}  Nc6 {[%clk 0:02:52]} 5. f4 {[%clk 0:02:56]}  Nf6 {[%clk 0:02:49]} 6. Nf3 {[%clk 0:02:57]}  Bg4 {[%clk 0:02:46]} 7. c3 {[%clk 0:02:44]}  Bxf3 {[%clk 0:02:41]} 8. gxf3 {[%clk 0:02:44]}  e5 {[%clk 0:02:36]} 9. fxe5 {[%clk 0:02:37]}  Nxe5 {[%clk 0:02:30]} 10. Ng3 {[%clk 0:02:37]}  h5 {[%clk 0:02:26]} 11. Be2 {[%clk 0:02:34]}  h4 {[%clk 0:02:24]} 12. Nf1 {[%clk 0:02:28]}  Qb6 {[%clk 0:02:13]} 13. f4 {[%clk 0:02:24]}  Nc6 {[%clk 0:02:08]} 14. Nd2 {[%clk 0:02:20]}  O-O-O {[%clk 0:02:02]} 15. Nc4 {[%clk 0:02:19]}  Qc7 {[%clk 0:02:01]} 16. Bf3 {[%clk 0:02:17]}  b5 {[%clk 0:01:50]} 17. Na3 {[%clk 0:02:13]}  a6 {[%clk 0:01:49]} 18. c4 {[%clk 0:02:09]}  b4 {[%clk 0:01:46]} 19. Nc2 {[%clk 0:02:10]}  Bd6 {[%clk 0:01:42]} 20. O-O {[%clk 0:02:04]}  Kb8 {[%clk 0:01:31]} 21. e5 {[%clk 0:02:01]}  Nxe5 {[%clk 0:01:25]} 22. fxe5 {[%clk 0:02:02]}  Bxe5 {[%clk 0:01:25]} 23. Qe2 {[%clk 0:01:58]}  Rde8 {[%clk 0:01:21]} 24. b3 {[%clk 0:01:49]}  g5 {[%clk 0:00:53]} 25. a3 {[%clk 0:01:40]}  g4 {[%clk 0:00:45]} 26. Bh1 {[%clk 0:01:24]}  Bg3 {[%clk 0:00:20]} 27. Qg2 {[%clk 0:01:22]}  Nh5 {[%clk 0:00:18]} 28. Qa8# {[%clk 0:01:21]} 1-0


[Site "https://www.chess.com"]

[Event "Titled Tuesday Blitz April 4 Late 2023"]
[White "reevecanada"]
[Black "Oliveira, Tiago Batista"]
[BlackFideId "2108291"]
[WhiteElo "2433"]
[BlackElo "1962"]
[Result "1-0"]
[Round "02"]
[TimeControl "180+2"]
[Date "2023.04.04"]
[WhiteClock "0:02:10"]
[BlackClock "0:00:11"]

1. e4 {[%clk 0:03:00]}  c5 {[%clk 0:02:57]} 2. Nf3 {[%clk 0:02:58]}  Nc6 {[%clk 0:02:57]} 3. Bb5 {[%clk 0:02:57]}  d6 {[%clk 0:02:53]} 4. O-O {[%clk 0:02:56]}  Bd7 {[%clk 0:02:51]} 5. c3 {[%clk 0:02:55]}  g6 {[%clk 0:02:48]} 6. d4 {[%clk 0:02:53]}  cxd4 {[%clk 0:02:39]} 7. cxd4 {[%clk 0:02:53]}  Bg7 {[%clk 0:02:32]} 8. Nc3 {[%clk 0:02:51]}  Qb6 {[%clk 0:02:18]} 9. d5 {[%clk 0:02:41]}  Ne5 {[%clk 0:02:16]} 10. Be3 {[%clk 0:02:39]}  Qa5 {[%clk 0:01:43]} 11. Bxd7+ {[%clk 0:02:28]}  Nxd7 {[%clk 0:01:42]} 12. Bd4 {[%clk 0:02:27]}  Ngf6 {[%clk 0:01:39]} 13. e5 {[%clk 0:02:26]}  dxe5 {[%clk 0:01:37]} 14. Nxe5 {[%clk 0:02:25]}  Nxe5 {[%clk 0:01:32]} 15. Bxe5 {[%clk 0:02:25]}  O-O {[%clk 0:01:25]} 16. Re1 {[%clk 0:02:23]}  Rfd8 {[%clk 0:01:20]} 17. Qb3 {[%clk 0:02:21]}  b6 {[%clk 0:01:09]} 18. Rad1 {[%clk 0:02:19]}  Rac8 {[%clk 0:01:06]} 19. d6 {[%clk 0:02:17]}  exd6 {[%clk 0:00:53]} 20. Bxf6 {[%clk 0:02:16]}  Bxf6 {[%clk 0:00:52]} 21. Nd5 {[%clk 0:02:16]}  Bg5 {[%clk 0:00:28]} 22. f4 {[%clk 0:02:13]}  Bh4 {[%clk 0:00:13]} 23. g3 {[%clk 0:02:11]}  Qc5+ {[%clk 0:00:11]} 24. Kh1 {[%clk 0:02:10]} 1-0


[Site "https://www.chess.com"]

[Event "Titled Tuesday Blitz April 4 Late 2023"]
[White "Duda, Jan-Krzysztof"]
[Black "Costachi, Mihnea"]
[WhiteFideId "1170546"]
[BlackFideId "1217518"]
[WhiteElo "2790"]
[BlackElo "2456"]
[Result "1-0"]
[Round "03"]
[TimeControl "180+2"]
[Date "2023.04.04"]
[WhiteClock "0:00:12"]
[BlackClock "0:00:26"]

1. d4 {[%clk 0:03:00]}  Nf6 {[%clk 0:02:59]} 2. c4 {[%clk 0:03:00]}  g6 {[%clk 0:03:00]} 3. Nc3 {[%clk 0:02:59]}  Bg7 {[%clk 0:03:01]} 4. e4 {[%clk 0:02:59]}  O-O {[%clk 0:03:01]} 5. Be2 {[%clk 0:02:58]}  d6 {[%clk 0:03:02]} 6. Nf3 {[%clk 0:02:58]}  Na6 {[%clk 0:03:02]} 7. O-O {[%clk 0:02:58]}  e5 {[%clk 0:03:03]} 8. Be3 {[%clk 0:02:54]}  c6 {[%clk 0:03:03]} 9. d5 {[%clk 0:02:53]}  Ng4 {[%clk 0:03:03]} 10. Bg5 {[%clk 0:02:53]}  f6 {[%clk 0:03:04]} 11. Bd2 {[%clk 0:02:52]}  c5 {[%clk 0:03:04]} 12. h3 {[%clk 0:02:23]}  Nh6 {[%clk 0:03:04]} 13. Qc1 {[%clk 0:02:24]}  Nf7 {[%clk 0:03:04]} 14. a3 {[%clk 0:02:00]}  f5 {[%clk 0:02:58]} 15. Rb1 {[%clk 0:02:01]}  f4 {[%clk 0:02:56]} 16. Kh2 {[%clk 0:01:55]}  g5 {[%clk 0:02:54]} 17. g4 {[%clk 0:01:49]}  fxg3+ {[%clk 0:02:30]} 18. fxg3 {[%clk 0:01:50]}  g4 {[%clk 0:02:31]} 19. hxg4 {[%clk 0:01:43]}  Bxg4 {[%clk 0:02:31]} 20. Nh4 {[%clk 0:01:43]}  Bxe2 {[%clk 0:02:25]} 21. Nxe2 {[%clk 0:01:44]}  Nh8 {[%clk 0:02:17]} 22. Nf5 {[%clk 0:01:42]}  Ng6 {[%clk 0:02:18]} 23. Bg5 {[%clk 0:01:36]}  Qd7 {[%clk 0:02:10]} 24. Kg2 {[%clk 0:01:31]}  Nc7 {[%clk 0:02:04]} 25. b4 {[%clk 0:01:27]}  cxb4 {[%clk 0:02:01]} 26. axb4 {[%clk 0:01:28]}  Bf6 {[%clk 0:01:52]} 27. Bh6 {[%clk 0:01:12]}  Rf7 {[%clk 0:01:51]} 28. c5 {[%clk 0:01:07]}  Nb5 {[%clk 0:01:52]} 29. Be3 {[%clk 0:01:04]}  Kh8 {[%clk 0:01:45]} 30. Rb3 {[%clk 0:00:50]}  Rc8 {[%clk 0:01:39]} 31. Qc4 {[%clk 0:00:49]}  a6 {[%clk 0:01:37]} 32. Nc3 {[%clk 0:00:33]}  Nd4 {[%clk 0:01:15]} 33. Nxd4 {[%clk 0:00:27]}  exd4 {[%clk 0:01:16]} 34. Bxd4 {[%clk 0:00:28]}  Bxd4 {[%clk 0:00:58]} 35. Qxd4+ {[%clk 0:00:29]}  Kg8 {[%clk 0:00:59]} 36. Rbb1 {[%clk 0:00:17]}  Rcf8 {[%clk 0:00:54]} 37. cxd6 {[%clk 0:00:15]}  Qxd6 {[%clk 0:00:54]} 38. Rxf7 {[%clk 0:00:14]}  Rxf7 {[%clk 0:00:55]} 39. b5 {[%clk 0:00:10]}  Nh4+ {[%clk 0:00:30]} 40. gxh4 {[%clk 0:00:11]}  Rg7+ {[%clk 0:00:31]} 41. Kh1 {[%clk 0:00:11]}  Qg3 {[%clk 0:00:26]} 42. Qxg7+ {[%clk 0:00:11]}  Qxg7 {[%clk 0:00:22]} 43. Rg1 {[%clk 0:00:12]}  a5 {[%clk 0:00:23]} 44. Rxg7+ {[%clk 0:00:11]}  Kxg7 {[%clk 0:00:24]} 45. d6 {[%clk 0:00:11]}  Kf6 {[%clk 0:00:24]} 46. e5+ {[%clk 0:00:11]}  Ke6 {[%clk 0:00:24]} 47. Na4 {[%clk 0:00:11]}  h5 {[%clk 0:00:22]} 48. Nc5+ {[%clk 0:00:11]}  Kxe5 {[%clk 0:00:22]} 49. Nxb7 {[%clk 0:00:11]}  a4 {[%clk 0:00:21]} 50. d7 {[%clk 0:00:12]}  a3 {[%clk 0:00:22]} 51. d8=Q {[%clk 0:00:12]}  a2 {[%clk 0:00:23]} 52. Qh8+ {[%clk 0:00:12]}  Kf5 {[%clk 0:00:23]} 53. Qa1 {[%clk 0:00:13]}  Kg4 {[%clk 0:00:23]} 54. Qxa2 {[%clk 0:00:13]}  Kh3 {[%clk 0:00:24]} 55. b6 {[%clk 0:00:13]}  Kg4 {[%clk 0:00:24]} 56. Nc5 {[%clk 0:00:14]}  Kf4 {[%clk 0:00:24]} 57. Qe6 {[%clk 0:00:13]}  Kg3 {[%clk 0:00:25]} 58. Qe4 {[%clk 0:00:12]}  Kh3 {[%clk 0:00:25]} 59. Nd3 {[%clk 0:00:12]}  Kg3 {[%clk 0:00:25]} 60. Qf4+ {[%clk 0:00:12]}  Kh3 {[%clk 0:00:26]} 61. Nf2# {[%clk 0:00:12]} 1-0


[Site "https://www.chess.com"]

[Event "Titled Tuesday Blitz April 4 Late 2023"]
[White "Bilych, Olexiy"]
[Black "Fedoseev, Vladimir"]
[WhiteFideId "14156504"]
[BlackFideId "24130737"]
[WhiteElo "2320"]
[BlackElo "2752"]
[Result "0-1"]
[Round "03"]
[TimeControl "180+2"]
[Date "2023.04.04"]
[WhiteClock "0:00:01"]
[BlackClock "0:00:35"]

1. d4 {[%clk 0:03:00]}  b6 {[%clk 0:02:56]} 2. e4 {[%clk 0:03:00]}  Bb7 {[%clk 0:02:56]} 3. Bd3 {[%clk 0:03:00]}  g6 {[%clk 0:02:55]} 4. Nf3 {[%clk 0:02:59]}  Bg7 {[%clk 0:02:55]} 5. O-O {[%clk 0:02:58]}  e6 {[%clk 0:02:55]} 6. c3 {[%clk 0:02:56]}  h6 {[%clk 0:02:53]} 7. h4 {[%clk 0:02:52]}  d6 {[%clk 0:02:53]} 8. Re1 {[%clk 0:02:51]}  Nd7 {[%clk 0:02:52]} 9. Nbd2 {[%clk 0:02:51]}  a6 {[%clk 0:02:51]} 10. a4 {[%clk 0:02:51]}  Ngf6 {[%clk 0:02:48]} 11. Nf1 {[%clk 0:02:51]}  Nh5 {[%clk 0:02:39]} 12. N1h2 {[%clk 0:02:34]}  e5 {[%clk 0:02:29]} 13. g3 {[%clk 0:02:02]}  Nhf6 {[%clk 0:02:21]} 14. dxe5 {[%clk 0:01:36]}  dxe5 {[%clk 0:02:17]} 15. b4 {[%clk 0:01:36]}  O-O {[%clk 0:02:10]} 16. Qc2 {[%clk 0:01:29]}  Re8 {[%clk 0:02:07]} 17. Nf1 {[%clk 0:01:09]}  Qc8 {[%clk 0:02:01]} 18. Ne3 {[%clk 0:01:06]}  c5 {[%clk 0:01:43]} 19. Nc4 {[%clk 0:00:55]}  Qc7 {[%clk 0:01:39]} 20. Be3 {[%clk 0:00:39]}  b5 {[%clk 0:01:22]} 21. axb5 {[%clk 0:00:32]}  axb5 {[%clk 0:01:21]} 22. Ncd2 {[%clk 0:00:23]}  c4 {[%clk 0:01:21]} 23. Bf1 {[%clk 0:00:23]}  Ng4 {[%clk 0:01:20]} 24. Bh3 {[%clk 0:00:21]}  Ndf6 {[%clk 0:01:19]} 25. Bc5 {[%clk 0:00:19]}  Bc6 {[%clk 0:01:15]} 26. Bg2 {[%clk 0:00:16]}  Qb7 {[%clk 0:01:14]} 27. Nh2 {[%clk 0:00:16]}  Nxh2 {[%clk 0:01:11]} 28. Kxh2 {[%clk 0:00:17]}  Bf8 {[%clk 0:01:08]} 29. Bxf8 {[%clk 0:00:13]}  Kxf8 {[%clk 0:01:09]} 30. f3 {[%clk 0:00:11]}  Red8 {[%clk 0:01:02]} 31. Nf1 {[%clk 0:00:09]}  Rd3 {[%clk 0:00:59]} 32. Rxa8+ {[%clk 0:00:07]}  Qxa8 {[%clk 0:01:00]} 33. Rd1 {[%clk 0:00:07]}  Qa4 {[%clk 0:00:54]} 34. Rc1 {[%clk 0:00:02]}  Qa3 {[%clk 0:00:51]} 35. Nd2 {[%clk 0:00:02]}  Nd7 {[%clk 0:00:50]} 36. Bf1 {[%clk 0:00:02]}  Rd6 {[%clk 0:00:49]} 37. Bxc4 {[%clk 0:00:01]}  Qa7 {[%clk 0:00:35]} 0-1


[Site "https://www.chess.com"]